bitfinex-derivatives/quotes_ETHF0:USTF0_20251103
["timestamp","ask_amount","ask_price","bid_price","bid_amount"]
[1762201394484,0.49888,3609.1,3609.0,0.77208]
[1762201394889,0.1707,3609.5,3609.1,0.49888]
[1762201395087,0.1707,3609.5,3609.1,0.76428]
[1762201395286,0.49887,3609.2,3609.1,0.76428]
[1762201395484,0.1464,3609.0,3608.7,0.2654]
[1762201395683,0.75284,3608.7,3608.6,0.00244458]
[1762201397394,0.49894,3608.7,3608.6,0.26784458]
[1762201397591,0.75284,3608.7,3608.6,0.00244458]
[1762201398588,0.49894,3608.7,3608.6,0.76679458]
[1762201398891,0.75284,3608.7,3608.6,0.00244458]
[1762201399084,0.49894,3608.7,3608.6,0.76679458]
[1762201399282,0.49892,3608.9,3608.7,0.49893]
[1762201399485,0.49894,3608.7,3608.6,0.26784458]
[1762201399690,0.49893,3608.8,3608.7,0.49893]
[1762201399886,0.49893,3608.8,3608.7,0.76433]
[1762201400288,0.1464,3609.0,3608.6,0.00244458]
[1762201400289,1.24698,3609.8,3609.0,0.0604]
[1762201400593,0.1707,3610.0,3609.9,0.49877]
[1762201400790,0.49876,3610.0,3609.9,0.2654]
[1762201400990,0.1464,3610.0,3609.4,10.018]
[1762201401295,0.49888,3609.1,3608.8,10.019]
[1762201401690,0.49888,3609.1,3608.9,0.49891]
[1762201402195,0.49888,3609.1,3608.8,10.019]
[1762201402397,0.1464,3609.5,3609.0,0.49888]
[1762201402597,0.4989,3609.0,3608.9,0.2654]
[1762201403187,0.49894,3608.7,3608.6,0.76679458]
[1762201404400,0.49892,3608.9,3608.8,0.49892]
[1762201404593,0.49892,3608.9,3608.8,0.76432]
[1762201404897,0.49892,3608.9,3608.8,0.49892]
[1762201405897,1.24711,3609.4,3608.6,0.00244458]
[1762201406101,1.24718,3609.2,3608.6,0.50139458]
[1762201406296,0.49894,3608.8,3608.7,0.76434]
[1762201407096,0.49894,3608.7,3608.6,0.50139458]
[1762201407394,0.49892,3608.8,3608.7,0.49894]
[1762201408498,0.49894,3608.7,3608.6,0.50138458]
[1762201408688,0.1464,3609.0,3608.6,0.50138458]
[1762201408689,0.49893,3608.8,3608.6,0.26784458]
[1762201408888,0.49893,3608.8,3608.7,0.2365]
[1762201409294,0.49893,3608.8,3608.7,0.73544]
[1762201409599,3.824,3609.4,3608.6,0.00244458]
[1762201409795,0.49891,3609.0,3608.6,0.00244458]
[1762201410002,0.49891,3609.0,3608.9,0.2365]
[1762201410297,0.49886,3609.3,3608.8,11.26331]
[1762201410503,0.49894,3608.7,3608.6,0.23894458]
[1762201410803,0.49894,3608.7,3608.6,0.73789458]
[1762201411103,0.4989,3609.0,3608.9,0.73541]
[1762201411398,0.49885,3609.3,3609.2,0.73536]
[1762201411699,0.49885,3609.3,3609.2,0.2365]
[1762201412095,0.49883,3609.5,3609.4,0.2365]
[1762201412495,0.49887,3609.2,3609.1,10.2525]
[1762201412696,0.49892,3608.8,3608.7,0.2365]
[1762201412900,0.49894,3608.7,3608.6,0.00244458]
[1762201413290,0.74114,3608.7,3608.6,0.00244458]
[1762201421502,0.74114,3608.7,3608.6,4.458e-05]
[1762201423202,0.49894,3608.7,3608.6,0.23654458]
[1762201423500,0.74114,3608.7,3608.6,0.23654458]
[1762201423703,0.74114,3608.7,3608.6,4.458e-05]
[1762201424903,0.49894,3608.7,3608.6,4.458e-05]
[1762201426708,0.49894,3608.7,3608.6,4.458e-05]
[1762201426905,3.824,3608.7,3607.7,1.98640752]
[1762201427108,0.74294,3607.2,3607.1,1.98640752]
[1762201427403,0.1345,3607.0,3606.4,0.2394]
[1762201427607,0.49926,3606.4,3606.0,2.13420752]
[1762201427808,0.49927,3606.4,3606.1,0.73869]
[1762201428007,0.49927,3606.4,3606.1,0.00271558]
[1762201428008,0.49928,3606.2,3606.1,0.00271558]
[1762201428205,0.74308,3606.2,3606.1,0.00271558]
[1762201428699,0.00199537,3606.4,3606.1,0.00271558]
[1762201428904,0.1345,3607.0,3606.7,0.2394]
[1762201428905,0.49921,3606.8,3606.7,0.2394]
[1762201429204,0.1345,3607.0,3606.1,0.00271558]
[1762201429410,0.2438,3606.2,3606.1,0.00271558]
[1762201429807,0.4992,3606.8,3606.1,0.00271558]
[1762201430005,0.49922,3606.7,3606.5,0.49924]
[1762201430205,0.00242047,3606.8,3606.6,0.49923]
[1762201430900,0.00242047,3606.8,3606.1,0.00271558]
[1762201431108,0.50162047,3606.8,3606.6,0.49922]
[1762201431306,0.00242047,3606.8,3606.6,0.49922]
[1762201431904,0.00242047,3606.8,3606.7,0.2394]
[1762201432103,0.1345,3608.0,3607.5,0.4991]
[1762201432503,0.49907,3607.8,3606.8,10.013]
[1762201432708,0.49908,3607.7,3606.8,10.013]
[1762201433003,0.49909,3607.6,3607.4,0.49912]
[1762201433206,0.50125459,3607.6,3607.4,0.49912]
[1762201433410,0.49911,3607.5,3607.2,0.49913]
[1762201433711,0.50125459,3607.6,3607.4,0.49911]
[1762201434113,0.49912,3607.4,3607.2,0.49913]
[1762201434311,0.00216459,3607.6,3607.0,0.49917]
[1762201434515,0.00216459,3607.6,3607.3,0.49913]
[1762201435014,0.49913,3607.3,3607.1,0.49916]
[1762201435409,0.49911,3607.5,3607.3,0.49913]
[1762201435810,0.49912,3607.4,3607.3,0.49913]
[1762201436615,0.00216459,3607.6,3606.8,10.013]
[1762201436816,0.00216459,3607.6,3607.1,0.49915]
[1762201437015,0.00216459,3607.6,3606.8,11.26098]
[1762201437217,0.4991,3607.5,3607.4,0.73851]
[1762201437413,0.50125459,3607.6,3607.5,0.2394]
[1762201437614,0.00216459,3607.6,3607.5,0.7385]
[1762201438216,0.50125459,3607.6,3607.5,0.7385]
[1762201438518,0.50125459,3607.6,3607.5,0.2394]
[1762201438906,0.00216459,3607.6,3607.5,0.7385]
[1762201439120,0.50125459,3607.6,3607.5,0.2394]
[1762201439318,0.50125459,3607.6,3607.5,0.7385]
[1762201439712,0.50125459,3607.6,3606.7,1.98640752]
[1762201439713,0.2438,3606.6,3606.5,1.98640752]
[1762201439914,0.49928,3606.2,3606.1,0.00271558]
[1762201440206,0.74308,3606.2,3606.1,0.00271558]
[1762201443515,0.74308,3606.2,3606.1,1.558e-05]
[1762201443818,0.49947,3604.8,3604.7,0.02774194]
[1762201444119,0.74327,3604.8,3604.7,0.02774194]
[1762201444712,0.24579615,3604.8,3604.7,0.02978166]
[1762201447721,0.63402,3604.5,3603.5,0.0439]
[1762201447920,0.63402,3604.5,3603.6,1.24911]
[1762201447921,0.49953,3604.4,3603.6,1.24911]
[1762201448320,0.1345,3604.5,3603.5,0.0439]
[1762201448523,0.49957,3604.1,3603.7,0.49962]
[1762201448723,0.2438,3604.2,3604.1,0.49957]
[1762201448923,0.1345,3604.5,3603.9,0.4996]
[1762201449327,0.1345,3604.5,3603.7,0.0021722]
[1762201449823,0.2438,3604.2,3604.1,0.49956]
[1762201450717,0.2438,3604.5,3604.4,0.49953]
[1762201451324,0.1345,3603.0,3602.1,2.47015138]
[1762201451517,0.1345,3603.0,3601.9,1.24969]
[1762201451518,0.2438,3602.6,3602.4,0.4998]
[1762201452024,0.74358,3602.6,3601.9,0.21747862]
[1762201452226,0.1345,3603.0,3601.9,0.0029108]
[1762201452425,0.63431,3602.4,3602.0,0.49986]
[1762201452827,0.49982,3602.3,3602.0,0.49986]
[1762201453029,0.49984,3602.2,3601.9,0.0029108]
[1762201453221,0.2438,3601.5,3601.4,0.21390313]
[1762201453428,0.2438,3600.1,3600.0,15.0]
[1762201453626,0.2438,3599.8,3599.1,0.50026]
[1762201453820,0.1345,3599.4,3598.6,0.50033]
[1762201454228,0.3783,3598.7,3597.6,8.6208]
[1762201454429,0.3783,3598.7,3597.7,40.8]
[1762201454632,0.5004,3598.2,3597.6,0.00258619]
[1762201454932,0.5004,3598.2,3594.9,2.50422]
[1762201454933,0.151,3596.6,3595.9,0.2134542]
[1762201455134,0.151,3596.6,3595.4,0.50078]
[1762201455337,0.151,3596.6,3595.9,0.50071]
[1762201455541,0.151,3597.3,3595.2,0.1548]
[1762201455933,0.151,3597.3,3595.2,0.37738105]
[1762201456237,0.151,3598.0,3595.6,12.51866]
[1762201456437,0.151,3598.0,3596.7,0.5006]
[1762201456638,0.00281271,3598.7,3597.9,0.50043]
[1762201456844,0.00281271,3598.7,3598.3,0.50038]
[1762201457146,13.26176,3600.9,3598.2,0.1134]
[1762201457147,0.151,3600.9,3598.2,0.1134]
[1762201457342,0.50008,3600.5,3598.3,0.095]
[1762201457639,0.151,3600.9,3598.4,4.828]
[1762201457846,0.50016,3599.9,3598.5,45.49035]
[1762201458041,0.50016,3599.9,3598.6,10.442]
[1762201458243,0.50019,3599.7,3598.5,40.8]
[1762201458437,0.50023,3599.4,3598.5,40.8]
[1762201458637,0.50277861,3599.9,3598.3,0.50038]
[1762201458842,0.00261861,3599.9,3598.2,10.5554]
[1762201459343,0.50277861,3599.9,3598.9,0.50029]
[1762201459546,0.50277861,3599.9,3598.6,0.50033]
[1762201459836,0.50019,3599.7,3598.7,0.50032]
[1762201460036,0.00261861,3599.9,3598.2,0.1134]
[1762201460239,0.5002,3599.6,3598.6,0.50033]
[1762201460437,0.00261861,3599.9,3598.6,0.50033]
[1762201460634,0.00261861,3599.9,3598.4,12.50913]
[1762201460834,0.00261861,3599.9,3598.7,12.5081]
[1762201461040,0.00261861,3599.9,3599.5,0.5002]
[1762201461343,0.00261861,3599.9,3599.7,0.50019]
[1762201462234,0.00261861,3599.9,3599.1,0.1548]
[1762201462440,0.00261861,3599.9,3597.2,12.51333]
[1762201462441,0.00261861,3599.9,3598.1,0.50041]
[1762201462645,0.50031,3598.9,3597.9,0.50303605]
[1762201462937,0.50024,3599.3,3598.3,0.50038]
[1762201463135,0.50029,3599.0,3598.0,0.50041]
[1762201463337,0.50029,3599.0,3597.9,0.00260605]
[1762201463748,0.50029,3599.0,3598.2,0.50038]
[1762201464048,0.50019,3599.7,3598.2,1.25097]
[1762201464349,0.50021,3599.6,3598.8,0.50031]
[1762201464842,0.00261861,3599.9,3597.9,0.00260605]
[1762201464843,0.50035,3598.6,3597.9,0.00260605]
[1762201465035,0.50035,3598.6,3596.8,0.1548]
[1762201465036,1.25117,3597.7,3596.4,0.1548]
[1762201465239,0.5006,3596.8,3595.2,0.1548]
[1762201465438,0.1261,3598.4,3595.6,1.25189]
[1762201465439,0.50045,3597.9,3595.6,1.25189]
[1762201465638,0.1261,3598.4,3596.9,0.50056]
[1762201465639,0.50046,3597.8,3596.9,0.50056]
[1762201465838,0.50046,3597.8,3597.0,0.50056]
[1762201466047,0.50049,3597.6,3597.0,0.00249495]
[1762201466246,0.5005,3597.5,3597.0,0.00249495]
[1762201466446,0.50047,3597.7,3597.0,0.00249495]
[1762201466636,0.00287542,3597.8,3597.0,0.00249495]
[1762201466841,0.50049,3597.6,3597.0,0.50305495]
[1762201467143,0.50053,3597.2,3597.0,0.00249495]
[1762201467346,0.151,3597.3,3596.3,0.50065]
[1762201467550,0.50048,3597.6,3596.9,0.50057]
[1762201468046,0.00287542,3597.8,3596.7,0.50059]
[1762201468246,0.5005,3597.5,3596.8,0.50058]
[1762201468449,0.00287542,3597.8,3596.7,0.00217871]
[1762201468748,0.50056,3597.1,3596.7,0.00217871]
[1762201468942,0.50053,3597.3,3596.7,0.50277871]
[1762201469249,0.50053,3597.3,3596.7,0.50276871]
[1762201469450,0.50054,3597.2,3596.7,0.50276871]
[1762201470447,0.50049,3597.6,3597.0,0.50056]
[1762201470749,0.00287542,3597.8,3596.8,0.2991]
[1762201470944,0.00287542,3597.8,3597.4,0.5005]
[1762201471142,0.50047,3597.7,3597.2,0.50053]
[1762201471743,0.00287542,3597.8,3597.3,0.50052]
[1762201471944,0.50333542,3597.8,3597.4,0.5005]
[1762201472145,0.50051,3597.4,3596.8,0.79969]
[1762201472442,0.50051,3597.4,3596.8,0.2991]
[1762201472646,0.50049,3597.6,3596.8,0.2991]
[1762201472848,0.50049,3597.6,3597.3,0.50051]
[1762201473148,0.2818,3596.8,3596.7,0.00217871]
[1762201473453,0.50069,3596.1,3595.2,0.1548]
[1762201473642,1.25159,3596.5,3595.2,0.1548]
[1762201473847,0.50071,3596.0,3595.5,0.50077]
[1762201474049,0.5007,3596.0,3595.5,0.50077]
[1762201474241,0.2818,3596.0,3594.7,0.02781912]
[1762201474444,0.2818,3596.8,3596.1,0.50068]
[1762201474640,0.5005,3597.5,3596.4,0.50064]
[1762201474847,0.5005,3597.5,3596.5,0.50063]
[1762201475041,0.2818,3597.6,3596.0,0.2991]
[1762201475242,0.2818,3597.6,3596.3,1.25165]
[1762201475442,0.2818,3597.6,3597.2,0.50053]
[1762201475443,0.78228,3597.6,3597.2,0.50053]
[1762201475645,0.50048,3597.6,3597.2,0.50053]
[1762201475845,0.50048,3597.6,3597.0,0.50055]
[1762201476050,0.50049,3597.5,3597.1,0.50055]
[1762201476350,0.00287542,3597.8,3597.6,0.50047]
[1762201476652,0.00287542,3597.8,3597.6,0.5026088]
[1762201477744,0.00287542,3597.8,3597.6,0.0021388]
[1762201477745,0.50046,3597.7,3597.6,0.0021388]
[1762201477943,0.50046,3597.7,3596.0,0.2991]
[1762201477944,0.50061,3596.7,3596.3,0.50065]
[1762201478155,0.50058,3596.9,3596.4,0.50064]
[1762201478351,0.50059,3596.8,3596.4,0.50064]
[1762201478750,0.00287542,3597.8,3597.0,0.50056]
[1762201479150,0.00287542,3597.8,3597.4,0.5005]
[1762201479345,0.00287542,3597.8,3597.0,0.50055]
[1762201479552,0.00287542,3597.8,3597.3,0.50052]
[1762201479553,0.50048,3597.6,3597.3,0.50052]
[1762201480052,0.00287542,3597.8,3596.8,0.2991]
[1762201480246,0.5005,3597.5,3597.1,0.50055]
[1762201480448,0.5005,3597.5,3597.2,0.50053]
[1762201480750,0.00287542,3597.8,3596.8,0.2991]
[1762201480949,0.5005,3597.5,3596.8,0.2991]
[1762201481250,0.5005,3597.5,3597.2,0.50053]
[1762201481448,0.5005,3597.5,3597.3,0.50052]
[1762201481653,0.00287542,3597.8,3597.3,0.50052]
[1762201481955,0.50049,3597.5,3597.3,0.50052]
[1762201482156,0.50048,3597.7,3597.4,0.5005]
[1762201482357,0.00287542,3597.8,3597.4,0.5005]
[1762201482358,0.00287542,3597.8,3597.6,0.50048]
[1762201482650,0.50031,3598.8,3597.8,1.25111]
[1762201482852,1.53247,3599.2,3598.3,0.50038]
[1762201483051,0.50035,3598.5,3598.3,0.50038]
[1762201483358,0.50034,3598.6,3598.4,0.50037]
[1762201483547,0.50036,3598.5,3598.2,0.50039]
[1762201483751,0.50383477,3598.5,3598.2,0.50039]
[1762201483952,0.50383477,3598.5,3598.3,0.50038]
[1762201484151,0.50037,3598.4,3598.0,0.2991]
[1762201484351,0.50037,3598.4,3598.2,0.50039]
[1762201484557,0.50037,3598.4,3598.0,0.2991]
[1762201484756,0.50382477,3598.5,3598.3,0.50038]
[1762201484957,0.00347477,3598.5,3598.4,0.50037]
[1762201485855,0.00347477,3598.5,3598.0,0.2991]
[1762201486060,0.00347477,3598.5,3598.4,0.50037]
[1762201486255,0.00347477,3598.5,3598.4,0.95737]
[1762201486553,0.50382477,3598.5,3598.4,0.457]
[1762201486754,0.50037,3598.4,3598.0,0.2991]
[1762201486954,0.50037,3598.4,3598.3,0.50038]
[1762201487256,0.50046,3597.8,3596.9,1.25143]
[1762201487456,0.00347477,3598.5,3596.9,1.25143]
[1762201487457,0.00347477,3598.5,3597.7,0.50046]
[1762201487660,0.00347477,3598.5,3597.9,0.50043]
[1762201487849,0.50039,3598.2,3597.9,0.50044]
[1762201488250,1.25092,3598.4,3597.1,1.25136]
[1762201488450,0.50045,3597.9,3597.6,0.50047]
[1762201488655,0.50045,3597.9,3597.8,0.50045]
[1762201489050,0.00347477,3598.5,3597.4,1.25127]
[1762201489455,0.00347477,3598.5,3597.3,0.2991]
[1762201489660,0.50048,3597.6,3597.3,0.2991]
[1762201489963,0.50048,3597.6,3597.5,0.50049]
[1762201490654,1.25096,3598.3,3597.6,0.50047]
[1762201490854,1.25096,3598.3,3596.9,10.46]
[1762201490855,0.50048,3597.6,3597.3,0.2817]
[1762201491056,0.50053,3597.3,3597.1,0.50053]
[1762201491565,0.50057,3597.0,3596.9,0.50058]
[1762201491757,1.25114,3597.8,3596.6,0.2864]
[1762201491951,1.25121,3597.6,3596.6,0.2864]
[1762201492255,0.64219681,3597.7,3596.4,0.00276039]
[1762201492256,0.78342,3597.3,3596.4,0.00276039]
[1762201492457,0.50059,3596.8,3596.7,0.4777]
[1762201492850,0.50056,3597.0,3596.7,0.9783]
[1762201493052,0.50059,3596.8,3596.7,0.9783]
[1762201493462,1.25129,3597.4,3596.4,0.00276039]
[1762201493661,0.64241818,3597.3,3597.2,0.97823]
[1762201493860,1.53399,3598.0,3597.2,0.97823]
[1762201493861,0.50051,3597.4,3597.2,0.97823]
[1762201494358,0.50055,3597.1,3597.0,0.50055]
[1762201494663,1.25138,3597.1,3596.4,0.50339039]
[1762201494856,0.50062,3596.6,3596.4,0.50340039]
[1762201495057,0.50062,3596.6,3596.5,0.50063]
[1762201495262,0.5006,3596.8,3596.5,0.50063]
[1762201495463,0.5006,3596.8,3596.6,0.50061]
[1762201495660,0.50063,3596.5,3596.4,0.00276039]
[1762201495861,0.50063,3596.5,3596.4,0.50340039]
[1762201496158,0.50046,3597.8,3596.6,0.2864]
[1762201496364,0.50048,3597.6,3596.8,1.25148]
[1762201496656,0.50038,3598.3,3597.3,0.2864]
[1762201496861,1.14332944,3598.2,3597.5,1.25123]
[1762201497064,0.50042,3598.0,3597.8,0.50044]
[1762201497363,0.50042,3598.0,3596.8,12.95291]
[1762201497364,0.78333,3598.0,3596.8,10.449]
[1762201497554,0.64286497,3597.9,3597.8,0.50045]
[1762201497758,0.50042,3598.1,3597.8,0.50045]
[1762201497958,0.50044,3597.9,3597.3,0.2864]
[1762201498159,0.50044,3597.9,3597.7,0.50046]
[1762201498457,0.50043,3598.0,3597.3,0.2864]
[1762201498768,0.50045,3597.8,3597.3,0.2864]
[1762201498958,1.25099,3598.2,3597.6,0.50047]
[1762201499159,0.50046,3597.8,3597.7,0.50046]
[1762201499359,1.25103,3598.1,3597.5,0.4777]
[1762201499567,0.50047,3597.7,3597.5,0.97819]
[1762201499763,0.50047,3597.7,3595.6,15.02242]
[1762201499764,0.2829,3598.0,3596.7,1.25151]
[1762201499962,0.64290839,3597.9,3597.5,0.50048]
[1762201500263,0.5006,3596.7,3596.2,0.50067]
[1762201500565,0.50061,3596.7,3596.5,0.50063]
[1762201500764,0.50062,3596.6,3596.4,0.50339039]
[1762201500960,1.53397,3598.0,3596.6,0.2864]
[1762201501159,2.14583133,3597.8,3597.1,0.50054]
[1762201501359,1.53399,3598.0,3596.8,1.25148]
[1762201501360,0.50051,3597.4,3596.8,1.25148]
[1762201501566,0.50051,3597.4,3597.3,0.50052]
[1762201501758,0.50048,3597.6,3597.4,0.5005]
[1762201502062,1.26485796,3598.7,3597.5,1.25122]
[1762201502362,1.26485796,3598.7,3597.3,0.2864]
[1762201502363,0.50038,3598.3,3598.1,0.50041]
[1762201502562,0.50043,3598.0,3597.7,0.50045]
[1762201502758,1.53374,3598.7,3598.0,0.50042]
[1762201502759,0.50041,3598.2,3598.0,0.50042]
[1762201502958,1.53374,3598.7,3597.3,0.2864]
[1762201503161,0.50044,3597.9,3597.3,10.7354]
[1762201503756,1.53373,3598.7,3598.1,0.50041]
[1762201504072,0.50038,3598.3,3597.7,1.25114]
[1762201504462,0.5003,3598.9,3598.4,0.97807]
[1762201504661,0.50031,3598.8,3598.4,0.97807]
[1762201504862,0.50029,3599.0,3598.4,0.97807]
[1762201505059,1.25045,3599.8,3598.4,0.97807]
[1762201505256,0.50028,3599.0,3598.4,0.97807]
[1762201505461,0.50029,3599.0,3598.4,0.4777]
[1762201505666,0.50027,3599.1,3598.4,0.4777]
[1762201505868,0.50028,3599.0,3598.4,0.4777]
[1762201506059,0.50031,3598.8,3598.4,0.4777]
[1762201506261,0.2829,3599.4,3598.4,0.4777]
[1762201506468,0.50026,3599.2,3598.4,0.4777]
[1762201506667,0.2829,3599.4,3598.4,0.4777]
[1762201506868,0.5003,3598.9,3598.4,0.4777]
[1762201507170,0.50039,3598.3,3598.1,0.4777]
[1762201507667,0.50041,3598.1,3598.0,10.441]
[1762201507969,0.50035,3598.6,3598.4,0.4777]
[1762201508171,1.53351,3599.4,3598.4,0.4777]
[1762201508371,0.5003,3598.9,3598.4,0.4777]
[1762201508562,0.50382477,3598.5,3598.4,0.4777]
[1762201508768,0.50382477,3598.5,3598.0,0.2864]
[1762201508769,0.00347477,3598.5,3598.3,4.48]
[1762201508957,0.50038,3598.4,3598.1,0.50041]
[1762201509163,0.50038,3598.4,3598.2,4.678]
[1762201509367,0.50038,3598.3,3598.2,0.50039]
[1762201509559,0.50038,3598.3,3598.2,0.97809]
[1762201509962,0.50384477,3598.5,3598.3,0.50038]
[1762201510370,0.50384477,3598.5,3598.2,5.386]
[1762201510371,0.00347477,3598.5,3598.2,5.386]
[1762201510563,0.00347477,3598.5,3597.3,0.2864]
[1762201510770,0.00347477,3598.5,3597.8,0.50044]
[1762201510966,0.50044,3597.9,3597.8,0.50044]
[1762201511166,0.00347477,3598.5,3597.5,0.50048]
[1762201511366,0.50047,3597.7,3597.6,0.97818]
[1762201511574,0.50045,3597.9,3597.7,0.50046]
[1762201511772,0.50038,3598.3,3597.3,0.50727814]
[1762201512069,0.00347477,3598.5,3597.3,0.50727814]
[1762201512268,0.50043,3598.0,3597.8,0.50045]
[1762201512771,0.50039,3598.2,3598.0,0.50041]
[1762201512966,0.50043,3597.9,3597.8,0.50044]
[1762201513167,0.00347477,3598.5,3598.1,0.5004]
[1762201513366,0.50039,3598.3,3598.1,0.5004]
[1762201513558,0.00347477,3598.5,3597.5,1.25123]
[1762201513758,0.00347477,3598.5,3598.4,0.50036]
[1762201513969,0.00347477,3598.5,3598.4,0.97806]
[1762201514165,0.00347477,3598.5,3598.4,0.4777]
[1762201514370,0.50382477,3598.5,3598.4,0.4777]
[1762201514574,0.00347477,3598.5,3598.4,0.97806]
[1762201514872,0.50382477,3598.5,3598.4,0.4777]
[1762201515060,0.50382477,3598.5,3598.4,0.97806]
[1762201515675,0.00347477,3598.5,3598.4,0.97806]
[1762201516566,0.00347477,3598.5,3598.4,0.4777]
[1762201516768,0.50382477,3598.5,3598.4,0.97806]
[1762201516972,0.00347477,3598.5,3598.4,0.97806]
[1762201519476,1.25051,3599.6,3599.0,0.50028]
[1762201519675,0.50027,3599.1,3598.8,0.2578]
[1762201519876,1.25061,3599.3,3598.3,40.8]
[1762201520178,1.25061,3599.3,3598.2,2.48679752]
[1762201520179,0.50031,3598.8,3598.7,0.50032]
[1762201520372,0.50278686,3598.8,3598.7,0.50291612]
[1762201520679,1.13078686,3598.8,3598.7,0.00259612]
[1762201521979,0.50046,3597.7,3597.1,3.23776752]
[1762201522170,0.50047,3597.7,3597.5,0.50049]
[1762201522373,0.50049,3597.5,3597.4,0.5005]
[1762201522668,0.50054,3597.1,3597.0,0.6731]
[1762201522873,0.50067,3596.2,3596.1,0.20173607]
[1762201523075,0.00343737,3596.2,3596.1,0.20445604]
[1762201523377,0.40143737,3596.2,3596.1,0.20445604]
[1762201523777,0.00343737,3596.2,3596.1,0.00271997]
[1762201523980,10.039,3598.1,3596.1,0.41801997]
[1762201524181,0.50047,3597.7,3597.2,0.50053]
[1762201524374,0.2048,3598.2,3597.4,0.5005]
[1762201524578,0.7052,3598.2,3597.6,0.50046]
[1762201524779,0.50041,3598.1,3597.7,0.50046]
[1762201524980,0.50044,3597.9,3597.5,0.50049]
[1762201525478,0.00210832,3598.1,3597.1,1.25137]
[1762201525684,0.50042,3598.0,3597.8,0.50044]
[1762201525980,0.50051,3597.4,3596.8,10.4]
[1762201526179,0.50052,3597.3,3597.0,0.50055]
[1762201526377,0.50052,3597.3,3596.8,10.4]
[1762201526584,1.25113,3597.8,3596.8,10.90058]
[1762201526880,0.50054,3597.2,3596.9,0.50057]
[1762201527080,0.50048,3597.6,3597.2,0.50053]
[1762201527280,0.50052,3597.3,3597.0,0.50055]
[1762201527580,0.50053,3597.2,3597.0,0.50055]
[1762201527977,0.00210832,3598.1,3597.6,0.50047]
[1762201528285,0.00210832,3598.1,3596.8,10.4]
[1762201528482,0.50048,3597.6,3597.3,0.50051]
[1762201528682,0.50048,3597.6,3596.8,10.4]
[1762201528683,0.00210832,3598.1,3596.9,1.25144]
[1762201528878,0.00210832,3598.1,3596.8,10.4]
[1762201529185,0.50048,3597.6,3597.4,0.5005]
[1762201529380,0.50048,3597.6,3597.3,0.50051]
[1762201529584,0.5005,3597.5,3597.3,0.50051]
[1762201529787,0.00210832,3598.1,3597.6,0.3813]
[1762201529987,0.50043,3598.0,3597.6,0.3813]
[1762201530287,0.50047,3597.7,3597.3,0.2301]
[1762201530481,0.50048,3597.6,3597.5,0.50049]
[1762201530683,0.50048,3597.6,3597.3,0.50052]
[1762201530884,0.50049,3597.5,3597.3,0.50052]
[1762201531086,0.00210832,3598.1,3597.1,11.62234]
[1762201531285,0.00210832,3598.1,3598.0,0.3813]
[1762201531585,0.50024,3599.3,3598.3,1.25095]
[1762201531888,0.50024,3599.3,3598.5,1.25088]
[1762201532088,1.25041,3599.9,3598.3,1.25095]
[1762201532089,1.25048,3599.7,3598.3,40.8]
[1762201532280,1.2505,3599.6,3598.3,40.8]
[1762201532486,0.50028,3599.0,3598.3,40.8]
[1762201532785,0.50027,3599.1,3598.9,0.50029]
[1762201532989,0.50028,3599.0,3598.9,0.00263287]
[1762201533581,0.00246211,3599.6,3599.2,0.50025]
[1762201533884,0.00246211,3599.6,3598.9,0.00263287]
[1762201534087,0.50024,3599.3,3599.0,2.786]
[1762201534293,0.50025,3599.2,3599.0,3.28627]
[1762201534592,0.00246211,3599.6,3599.4,0.50022]
[1762201534797,0.00246211,3599.6,3599.5,0.3813]
[1762201537086,0.50028,3599.0,3598.9,0.00263287]
[1762201538192,0.87988,3599.0,3598.9,0.00263287]
[1762201538589,0.5004,3598.1,3598.0,0.2332]
[1762201538794,0.50045,3597.8,3597.7,10.7453]
[1762201539095,1.25102,3598.1,3597.2,10.364]
[1762201539299,2.74666,3598.7,3597.5,0.3813]
[1762201539300,0.50048,3597.6,3597.5,0.3813]
[1762201539701,0.50044,3597.9,3597.5,0.38477354]
[1762201539898,0.50045,3597.8,3597.5,0.88525354]
[1762201540200,0.50046,3597.7,3597.5,0.88525354]
[1762201540696,1.25093,3598.4,3597.5,0.88525354]
[1762201540697,1.25043,3599.8,3597.7,1.25116]
[1762201540998,0.50034,3598.6,3598.0,0.2332]
[1762201541200,0.50035,3598.5,3598.3,0.50036]
[1762201541589,0.50038,3598.3,3598.1,10.85739]
[1762201541794,1.25068,3599.1,3598.3,0.50037]
[1762201542000,0.50035,3598.5,3598.3,0.50037]
[1762201542295,0.50032,3598.8,3598.5,0.50035]
[1762201542501,0.50033,3598.7,3598.4,0.50035]
[1762201542904,0.50034,3598.6,3598.4,0.50035]
[1762201543109,0.50035,3598.5,3598.3,0.50037]
[1762201543699,1.25071,3599.0,3598.3,0.50037]
[1762201543898,0.00246211,3599.6,3598.4,1.2509]
[1762201544199,0.50021,3599.5,3599.3,0.50024]
[1762201544599,0.50023,3599.4,3599.1,0.50025]
[1762201544999,0.50025,3599.2,3599.1,0.50025]
[1762201545503,0.50027,3599.1,3598.9,0.50028]
[1762201545701,0.50027,3599.1,3599.0,0.50028]
[1762201546298,0.50028,3599.0,3598.9,0.3813]
[1762201547095,0.00246211,3599.6,3598.7,8.5382]
[1762201547391,0.00246211,3599.6,3599.0,0.50027]
[1762201547699,0.00246211,3599.6,3598.7,8.5382]
[1762201547895,0.50025,3599.2,3599.0,0.50027]
[1762201548096,1.25058,3599.4,3598.7,8.5382]
[1762201548401,0.50028,3599.0,3598.7,8.5382]
[1762201548599,0.50046,3597.7,3597.6,1.98640752]
[1762201548805,0.2015,3598.2,3597.5,0.00347354]
[1762201549003,0.50045,3597.8,3597.5,0.00347354]
[1762201549298,0.50046,3597.7,3597.5,0.00347354]
[1762201549500,0.6036,3597.6,3596.4,0.2328]